[Event "*** Titled Tuesday Blitz"]
[Site "Chess.com"]
[Date "2020.05.19"]
[Round "2"]
[White "LiverpooL174"]
[Black "Gabrielian_Artur"]
[Result "1/2-1/2"]
[WhiteElo "2495"]
[BlackElo "2717"]
[TimeControl "180+1"]
[EndTime "12:19:54 PDT"]
[Termination "Game drawn - insufficient material"]

1. Nf3 {[%clk 0:03:00.9]} 1... Nf6 {[%clk 0:02:59.6]} 2. b3 {[%clk 0:03:01.8]}
2... g6 {[%clk 0:02:59.6]} 3. Bb2 {[%clk 0:03:02.7]} 3... Bg7 {[%clk 0:02:59.8]}
4. g3 {[%clk 0:03:03.6]} 4... O-O {[%clk 0:02:59.4]} 5. Bg2 {[%clk 0:03:04.3]}
5... d6 {[%clk 0:02:52.5]} 6. d4 {[%clk 0:03:04.2]} 6... Nbd7 {[%clk 0:02:51.9]}
7. O-O {[%clk 0:03:04]} 7... Re8 {[%clk 0:02:51.7]} 8. c4 {[%clk 0:03:02.8]}
8... e5 {[%clk 0:02:51.9]} 9. dxe5 {[%clk 0:03:03.7]} 9... Ng4 {[%clk
0:02:52.1]} 10. Nc3 {[%clk 0:03:02.4]} 10... dxe5 {[%clk 0:02:52]} 11. h3 {[%clk
0:02:51.4]} 11... Nh6 {[%clk 0:02:51.5]} 12. Qc2 {[%clk 0:02:51.5]} 12... f5
{[%clk 0:02:45.7]} 13. e4 {[%clk 0:02:51.1]} 13... f4 {[%clk 0:02:38]} 14. g4
{[%clk 0:02:51.1]} 14... Nf7 {[%clk 0:02:37.1]} 15. Rad1 {[%clk 0:02:48.8]}
15... c6 {[%clk 0:02:37.1]} 16. Ba3 {[%clk 0:02:47.4]} 16... Qc7 {[%clk
0:02:27.4]} 17. Na4 {[%clk 0:02:45.8]} 17... b6 {[%clk 0:02:25.8]} 18. Rd2
{[%clk 0:02:42.3]} 18... Nf8 {[%clk 0:02:24.6]} 19. Rfd1 {[%clk 0:02:42.9]}
19... Ne6 {[%clk 0:02:24.2]} 20. Bb2 {[%clk 0:02:40.3]} 20... Bb7 {[%clk
0:02:11.2]} 21. b4 {[%clk 0:02:38.4]} 21... Rad8 {[%clk 0:02:07.8]} 22. Rxd8
{[%clk 0:02:35.7]} 22... Rxd8 {[%clk 0:02:07.6]} 23. Rxd8+ {[%clk 0:02:35.5]}
23... Qxd8 {[%clk 0:02:07.8]} 24. Bc3 {[%clk 0:02:33.4]} 24... Nd4 {[%clk
0:01:58.1]} 25. Bxd4 {[%clk 0:02:31]} 25... exd4 {[%clk 0:01:58.2]} 26. Nb2
{[%clk 0:02:29.4]} 26... c5 {[%clk 0:01:57.5]} 27. bxc5 {[%clk 0:02:23.7]} 27...
bxc5 {[%clk 0:01:57.6]} 28. Ne1 {[%clk 0:02:24.6]} 28... Qa5 {[%clk 0:01:50.2]}
29. Nbd3 {[%clk 0:02:23]} 29... Ne5 {[%clk 0:01:38.5]} 30. Kh2 {[%clk
0:02:13.7]} 30... f3 {[%clk 0:01:34.1]} 31. Bxf3 {[%clk 0:02:11.9]} 31... Nxf3+
{[%clk 0:01:33.4]} 32. Nxf3 {[%clk 0:02:12.8]} 32... Bxe4 {[%clk 0:01:33.4]} 33.
Qe2 {[%clk 0:02:10.9]} 33... Qc7+ {[%clk 0:01:24]} 34. Kg1 {[%clk 0:02:08.8]}
34... Bxd3 {[%clk 0:01:05.3]} 35. Qxd3 {[%clk 0:02:09.7]} 35... Qf4 {[%clk
0:01:04.7]} 36. Qe2 {[%clk 0:02:08.6]} 36... Bf6 {[%clk 0:01:05]} 37. Qe8+
{[%clk 0:02:06.2]} 37... Kg7 {[%clk 0:01:05]} 38. Qd7+ {[%clk 0:02:06.8]} 38...
Kh6 {[%clk 0:01:02.7]} 39. Kg2 {[%clk 0:02:07.3]} 39... g5 {[%clk 0:00:59.8]}
40. Qf7 {[%clk 0:02:03.4]} 40... d3 {[%clk 0:00:51]} 41. Qf8+ {[%clk 0:01:51.8]}
41... Kg6 {[%clk 0:00:47.9]} 42. Qg8+ {[%clk 0:01:49.8]} 42... Bg7 {[%clk
0:00:43.6]} 43. Qe8+ {[%clk 0:01:37.2]} 43... Kf6 {[%clk 0:00:43.4]} 44. Qd8+
{[%clk 0:01:35.8]} 44... Kg6 {[%clk 0:00:40.2]} 45. Qxd3+ {[%clk 0:01:36.7]}
45... Kf7 {[%clk 0:00:36.4]} 46. Qd5+ {[%clk 0:01:36.3]} 46... Kg6 {[%clk
0:00:36.6]} 47. Qxc5 {[%clk 0:01:34.4]} 47... h5 {[%clk 0:00:34.3]} 48. Qf5+
{[%clk 0:01:07.5]} 48... Qxf5 {[%clk 0:00:33.9]} 49. gxf5+ {[%clk 0:01:08.4]}
49... Kxf5 {[%clk 0:00:34.6]} 50. c5 {[%clk 0:01:09.3]} 50... Bf6 {[%clk
0:00:30.8]} 51. c6 {[%clk 0:01:09.4]} 51... Ke6 {[%clk 0:00:30.8]} 52. Nd2
{[%clk 0:01:00.7]} 52... Be5 {[%clk 0:00:28.5]} 53. Ne4 {[%clk 0:01:00.2]} 53...
g4 {[%clk 0:00:20.3]} 54. hxg4 {[%clk 0:00:59.6]} 54... hxg4 {[%clk 0:00:20.7]}
55. Kf1 {[%clk 0:00:59.1]} 55... Bc7 {[%clk 0:00:16.9]} 56. Ke2 {[%clk
0:00:58.1]} 56... Kd5 {[%clk 0:00:17.3]} 57. Kd3 {[%clk 0:00:58.5]} 57... Kxc6
{[%clk 0:00:17.2]} 58. Nf6 {[%clk 0:00:57]} 58... g3 {[%clk 0:00:17.2]} 59. fxg3
{[%clk 0:00:57.9]} 59... Bxg3 {[%clk 0:00:17.9]} 60. Ne4 {[%clk 0:00:58.6]}
60... Bc7 {[%clk 0:00:18]} 61. Kc2 {[%clk 0:00:59]} 61... Kd5 {[%clk 0:00:17.8]}
62. Nd2 {[%clk 0:00:53.7]} 62... Kc6 {[%clk 0:00:16.5]} 63. Kb3 {[%clk
0:00:53.8]} 63... Bb6 {[%clk 0:00:16.8]} 64. Nc4 {[%clk 0:00:54.1]} 64... Bc5
{[%clk 0:00:17]} 65. a3 {[%clk 0:00:54.3]} 65... Bd4 {[%clk 0:00:17]} 66. Kb4
{[%clk 0:00:54.4]} 66... Bc5+ {[%clk 0:00:16.8]} 67. Kb3 {[%clk 0:00:54.7]}
67... Bd4 {[%clk 0:00:16.9]} 68. Kb4 {[%clk 0:00:55.3]} 68... Bf2 {[%clk
0:00:17.1]} 69. Na5+ {[%clk 0:00:55.3]} 69... Kc7 {[%clk 0:00:15.8]} 70. Nc4
{[%clk 0:00:56.2]} 70... Kc6 {[%clk 0:00:15.8]} 71. Na5+ {[%clk 0:00:56.2]}
71... Kb6 {[%clk 0:00:15.4]} 72. Nc4+ {[%clk 0:00:56.7]} 72... Ka6 {[%clk
0:00:15.8]} 73. Ka4 {[%clk 0:00:55.4]} 73... Be1 {[%clk 0:00:15.5]} 74. Nd6
{[%clk 0:00:55.2]} 74... Bg3 {[%clk 0:00:13.5]} 75. Nb5 {[%clk 0:00:55.3]} 75...
Bf2 {[%clk 0:00:13.7]} 76. Nxa7 {[%clk 0:00:56.2]} 76... Bxa7 {[%clk 0:00:14.2]}
77. Kb3 {[%clk 0:00:56.4]} 77... Kb5 {[%clk 0:00:14.4]} 78. a4+ {[%clk 0:00:57]}
78... Ka5 {[%clk 0:00:14.8]} 79. Kc3 {[%clk 0:00:57.5]} 79... Bb6 {[%clk
0:00:14.9]} 80. Kd3 {[%clk 0:00:57.7]} 80... Bc7 {[%clk 0:00:15.3]} 81. Ke4
{[%clk 0:00:58.2]} 81... Bd6 {[%clk 0:00:15.7]} 82. Kd5 {[%clk 0:00:59.1]} 82...
Bb4 {[%clk 0:00:16]} 83. Ke6 {[%clk 0:01:00]} 83... Ba3 {[%clk 0:00:16.1]} 84.
Kf5 {[%clk 0:01:00.9]} 84... Bb2 {[%clk 0:00:16.5]} 85. Kg6 {[%clk 0:01:01.8]}
85... Bc3 {[%clk 0:00:17]} 86. Kf7 {[%clk 0:01:02.7]} 86... Bb4 {[%clk
0:00:17.5]} 87. Kg8 {[%clk 0:01:03.6]} 87... Bc5 {[%clk 0:00:18.2]} 88. Kh7
{[%clk 0:01:04.5]} 88... Bb6 {[%clk 0:00:18.8]} 89. Kg6 {[%clk 0:01:05.4]} 89...
Ba7 {[%clk 0:00:19.5]} 90. Kf7 {[%clk 0:01:06.3]} 90... Bb8 {[%clk 0:00:20.2]}
91. Kg8 {[%clk 0:01:07.2]} 91... Bc7 {[%clk 0:00:20.7]} 92. Kh7 {[%clk
0:01:08.1]} 92... Bd6 {[%clk 0:00:20.9]} 93. Kg6 {[%clk 0:01:09]} 93... Kxa4
{[%clk 0:00:21.4]} 1/2-1/2

[Event "*** Titled Tuesday Blitz"]
[Site "Chess.com"]
[Date "2020.05.19"]
[Round "2"]
[White "LuckSlayeer"]
[Black "Siemba"]
[Result "0-1"]
[WhiteElo "2437"]
[BlackElo "2254"]
[TimeControl "180+1"]
[EndTime "12:19:55 PDT"]
[Termination "Siemba won on time"]

1. e4 {[%clk 0:02:57.1]} 1... e6 {[%clk 0:02:55.1]} 2. d4 {[%clk 0:02:48.2]}
2... d5 {[%clk 0:02:54.4]} 3. Nc3 {[%clk 0:02:48]} 3... Nf6 {[%clk 0:02:55]} 4.
e5 {[%clk 0:02:48]} 4... Nfd7 {[%clk 0:02:55.4]} 5. f4 {[%clk 0:02:48.6]} 5...
c5 {[%clk 0:02:56.1]} 6. Nf3 {[%clk 0:02:49.3]} 6... Nc6 {[%clk 0:02:57]} 7. Be3
{[%clk 0:02:49.8]} 7... cxd4 {[%clk 0:02:57.8]} 8. Nxd4 {[%clk 0:02:50.7]} 8...
Qb6 {[%clk 0:02:58.5]} 9. Qd2 {[%clk 0:02:47.2]} 9... Qxb2 {[%clk 0:02:58.6]}
10. Rb1 {[%clk 0:02:47.1]} 10... Qa3 {[%clk 0:02:59.3]} 11. Ndb5 {[%clk
0:02:18.7]} 11... Qa5 {[%clk 0:02:55.3]} 12. Be2 {[%clk 0:01:47.5]} 12... a6
{[%clk 0:02:34.8]} 13. Nd6+ {[%clk 0:01:31.2]} 13... Bxd6 {[%clk 0:02:33.1]} 14.
exd6 {[%clk 0:01:32.1]} 14... Qa3 {[%clk 0:01:52.6]} 15. O-O {[%clk 0:01:08]}
15... Qxd6 {[%clk 0:01:42.1]} 16. Ne4 {[%clk 0:01:04.1]} 16... Qe7 {[%clk
0:01:33.6]} 17. Ng3 {[%clk 0:00:57]} 17... Nf6 {[%clk 0:01:08.2]} 18. c4 {[%clk
0:00:38.7]} 18... O-O {[%clk 0:01:05.8]} 19. cxd5 {[%clk 0:00:33.9]} 19... Nxd5
{[%clk 0:01:03.8]} 20. Bf2 {[%clk 0:00:32.9]} 20... b5 {[%clk 0:00:54.1]} 21.
Ne4 {[%clk 0:00:25.4]} 21... Rd8 {[%clk 0:00:36.1]} 22. Qc1 {[%clk 0:00:19.7]}
22... Bb7 {[%clk 0:00:28.9]} 23. Nc5 {[%clk 0:00:18]} 23... Rac8 {[%clk
0:00:29.3]} 24. Bf3 {[%clk 0:00:14.7]} 24... Ncb4 {[%clk 0:00:24.3]} 25. Rxb4
{[%clk 0:00:09.1]} 25... Nxb4 {[%clk 0:00:15.8]} 26. Bxb7 {[%clk 0:00:08]} 26...
Nd3 {[%clk 0:00:10.8]} 27. Qc3 {[%clk 0:00:07.9]} 27... Nxf2 {[%clk 0:00:05.7]}
28. Bxc8 {[%clk 0:00:07.2]} 28... Rxc8 {[%clk 0:00:05]} 29. Rxf2 {[%clk
0:00:06]} 29... Qxc5 {[%clk 0:00:05.4]} 30. Qd3 {[%clk 0:00:04]} 30... h6 {[%clk
0:00:05.4]} 31. g3 {[%clk 0:00:02.4]} 31... Qc4 {[%clk 0:00:05.7]} 32. Qd2
{[%clk 0:00:02.5]} 32... Qc1+ {[%clk 0:00:06.6]} 33. Qxc1 {[%clk 0:00:02.8]}
33... Rxc1+ {[%clk 0:00:07.5]} 34. Kg2 {[%clk 0:00:03.7]} 34... Kf8 {[%clk
0:00:08]} 35. Rd2 {[%clk 0:00:04]} 35... Ke7 {[%clk 0:00:08.6]} 36. Kf3 {[%clk
0:00:04.5]} 36... Rc3+ {[%clk 0:00:08.8]} 37. Ke4 {[%clk 0:00:04.7]} 37... Rc4+
{[%clk 0:00:09]} 38. Kd3 {[%clk 0:00:04.1]} 38... Kd6 {[%clk 0:00:08.6]} 39. Rb2
{[%clk 0:00:04.3]} 39... f6 {[%clk 0:00:06.3]} 40. Re2 {[%clk 0:00:04.5]} 40...
Rc5 {[%clk 0:00:06.1]} 41. Rb2 {[%clk 0:00:04.3]} 41... Rd5+ {[%clk 0:00:06.6]}
42. Ke3 {[%clk 0:00:04.4]} 42... Rc5 {[%clk 0:00:07.1]} 43. Rd2+ {[%clk
0:00:04.8]} 43... Kc7 {[%clk 0:00:07.6]} 44. Rb2 {[%clk 0:00:05.1]} 44... e5
{[%clk 0:00:08]} 45. fxe5 {[%clk 0:00:05]} 45... Rxe5+ {[%clk 0:00:08.9]} 46.
Kd4 {[%clk 0:00:05.5]} 46... Kd6 {[%clk 0:00:09.3]} 47. Rc2 {[%clk 0:00:05.9]}
47... Rd5+ {[%clk 0:00:09.7]} 48. Ke4 {[%clk 0:00:06.2]} 48... Rc5 {[%clk
0:00:10.1]} 49. Rd2+ {[%clk 0:00:06.1]} 49... Ke6 {[%clk 0:00:11]} 50. Rb2
{[%clk 0:00:05.8]} 50... f5+ {[%clk 0:00:11.1]} 51. Kf3 {[%clk 0:00:05.5]} 51...
g5 {[%clk 0:00:10.7]} 52. Ke3 {[%clk 0:00:04.9]} 52... Ke5 {[%clk 0:00:09.2]}
53. Ke2 {[%clk 0:00:04.8]} 53... f4 {[%clk 0:00:09]} 54. gxf4+ {[%clk
0:00:04.4]} 54... gxf4 {[%clk 0:00:09.9]} 55. Kf2 {[%clk 0:00:04.8]} 55... Rc3
{[%clk 0:00:08.6]} 56. Re2+ {[%clk 0:00:04.1]} 56... Kf5 {[%clk 0:00:09.3]} 57.
Rd2 {[%clk 0:00:04]} 57... Ra3 {[%clk 0:00:09.6]} 58. Kg2 {[%clk 0:00:04]} 58...
Ke4 {[%clk 0:00:09]} 59. Kf2 {[%clk 0:00:04.5]} 59... h5 {[%clk 0:00:07.5]} 60.
Rc2 {[%clk 0:00:04.1]} 60... h4 {[%clk 0:00:07.7]} 61. Rb2 {[%clk 0:00:04.3]}
61... h3 {[%clk 0:00:08.2]} 62. Rb4+ {[%clk 0:00:04.6]} 62... Kf5 {[%clk
0:00:08.4]} 63. Rb3 {[%clk 0:00:04.9]} 63... Rxb3 {[%clk 0:00:07.4]} 0-1

[Event "*** Titled Tuesday Blitz"]
[Site "Chess.com"]
[Date "2020.05.19"]
[Round "2"]
[White "GoltsevDmitry2000"]
[Black "Msb2"]
[Result "1-0"]
[WhiteElo "2573"]
[BlackElo "2900"]
[TimeControl "180+1"]
[EndTime "12:19:59 PDT"]
[Termination "GoltsevDmitry2000 won by checkmate"]

1. e4 {[%clk 0:03:00.4]} 1... e6 {[%clk 0:02:57.6]} 2. d4 {[%clk 0:02:58.8]}
2... d5 {[%clk 0:02:58.1]} 3. exd5 {[%clk 0:02:59.7]} 3... exd5 {[%clk 0:02:59]}
4. Bd3 {[%clk 0:03:00.1]} 4... Nc6 {[%clk 0:02:58.9]} 5. Nf3 {[%clk 0:03:00.7]}
5... Bd6 {[%clk 0:02:59.5]} 6. c3 {[%clk 0:03:00.4]} 6... Nge7 {[%clk
0:02:59.6]} 7. Qc2 {[%clk 0:02:57.8]} 7... Bg4 {[%clk 0:02:59.4]} 8. Nbd2 {[%clk
0:02:57.1]} 8... Qd7 {[%clk 0:02:59.9]} 9. h3 {[%clk 0:02:54.1]} 9... Bh5 {[%clk
0:02:59.6]} 10. O-O {[%clk 0:02:54.1]} 10... f6 {[%clk 0:02:59]} 11. Re1 {[%clk
0:02:51.9]} 11... O-O-O {[%clk 0:02:58]} 12. b4 {[%clk 0:02:45.8]} 12... Rde8
{[%clk 0:02:42.9]} 13. a4 {[%clk 0:02:40.5]} 13... g5 {[%clk 0:02:41.6]} 14. Nh2
{[%clk 0:02:32.3]} 14... g4 {[%clk 0:02:35.4]} 15. hxg4 {[%clk 0:02:20.3]} 15...
Bxg4 {[%clk 0:02:28.9]} 16. Ndf1 {[%clk 0:02:05.6]} 16... Bf5 {[%clk 0:02:16.6]}
17. Bh6 {[%clk 0:01:43.4]} 17... Rhg8 {[%clk 0:02:03.4]} 18. Re2 {[%clk
0:01:27.3]} 18... Bxb4 {[%clk 0:01:25.6]} 19. cxb4 {[%clk 0:01:14.3]} 19... Nxb4
{[%clk 0:01:25.4]} 20. Bxf5 {[%clk 0:01:10.5]} 20... Nxf5 {[%clk 0:01:24.7]} 21.
Rxe8+ {[%clk 0:01:08.7]} 21... Rxe8 {[%clk 0:01:25.6]} 22. Qd2 {[%clk 0:01:05]}
22... Nc6 {[%clk 0:01:17.6]} 23. Be3 {[%clk 0:00:59.5]} 23... h5 {[%clk
0:01:02.5]} 24. Qd3 {[%clk 0:00:54.4]} 24... h4 {[%clk 0:01:00.9]} 25. Ng4
{[%clk 0:00:49.3]} 25... Qe6 {[%clk 0:00:51.4]} 26. Re1 {[%clk 0:00:41.8]} 26...
Nd6 {[%clk 0:00:51.5]} 27. f3 {[%clk 0:00:36.2]} 27... Qf7 {[%clk 0:00:27.4]}
28. Bf2 {[%clk 0:00:31.7]} 28... Rh8 {[%clk 0:00:22.5]} 29. Qe3 {[%clk 0:00:31]}
29... Re8 {[%clk 0:00:20]} 30. Qf4 {[%clk 0:00:26.8]} 30... Rxe1 {[%clk
0:00:19.7]} 31. Bxe1 {[%clk 0:00:27.7]} 31... a5 {[%clk 0:00:15.5]} 32. Bxh4
{[%clk 0:00:26.8]} 32... f5 {[%clk 0:00:14.7]} 33. Ne5 {[%clk 0:00:25.4]} 33...
Nxe5 {[%clk 0:00:14.4]} 34. Qxe5 {[%clk 0:00:26.3]} 34... Nc4 {[%clk 0:00:11.7]}
35. Qf4 {[%clk 0:00:20]} 35... b6 {[%clk 0:00:08.9]} 36. Ne3 {[%clk 0:00:18.8]}
36... Nd6 {[%clk 0:00:08.5]} 37. Bg3 {[%clk 0:00:16.6]} 37... Qe6 {[%clk
0:00:05]} 38. Qe5 {[%clk 0:00:16.4]} 38... Qd7 {[%clk 0:00:04.9]} 39. Nxd5
{[%clk 0:00:15.7]} 39... Nc4 {[%clk 0:00:02.7]} 40. Qxc7+ {[%clk 0:00:13.4]}
40... Qxc7 {[%clk 0:00:03.3]} 41. Bxc7 {[%clk 0:00:14.3]} 41... Kb7 {[%clk
0:00:03.9]} 42. Bxb6 {[%clk 0:00:13.7]} 42... Nb2 {[%clk 0:00:01.2]} 43. Bxa5
{[%clk 0:00:13.3]} 43... Nxa4 {[%clk 0:00:02.1]} 44. Bd2 {[%clk 0:00:13.8]}
44... Kc6 {[%clk 0:00:02]} 45. Ne3 {[%clk 0:00:14.2]} 45... f4 {[%clk
0:00:02.4]} 46. Nf5 {[%clk 0:00:14.2]} 46... Kd5 {[%clk 0:00:03.3]} 47. Bxf4
{[%clk 0:00:14.7]} 47... Nc3 {[%clk 0:00:03.8]} 48. Be5 {[%clk 0:00:14.9]} 48...
Ne2+ {[%clk 0:00:04]} 49. Kf2 {[%clk 0:00:15.2]} 49... Nc1 {[%clk 0:00:04.9]}
50. Ne3+ {[%clk 0:00:15.8]} 50... Ke6 {[%clk 0:00:04.8]} 51. g4 {[%clk
0:00:16.7]} 51... Nb3 {[%clk 0:00:05.7]} 52. f4 {[%clk 0:00:17]} 52... Kf7
{[%clk 0:00:05.5]} 53. Kf3 {[%clk 0:00:17.3]} 53... Nd2+ {[%clk 0:00:05.8]} 54.
Ke2 {[%clk 0:00:17.5]} 54... Nb3 {[%clk 0:00:06.7]} 55. g5 {[%clk 0:00:18.4]}
55... Kg6 {[%clk 0:00:06.5]} 56. Kd3 {[%clk 0:00:18.7]} 56... Na5 {[%clk
0:00:06.8]} 57. d5 {[%clk 0:00:18.9]} 57... Nb7 {[%clk 0:00:07]} 58. d6 {[%clk
0:00:19.3]} 58... Kf7 {[%clk 0:00:07.6]} 59. Nf5 {[%clk 0:00:18.1]} 59... Ke6
{[%clk 0:00:07.9]} 60. Nd4+ {[%clk 0:00:18.7]} 60... Kd5 {[%clk 0:00:08.5]} 61.
g6 {[%clk 0:00:17.4]} 61... Nc5+ {[%clk 0:00:08.6]} 62. Ke3 {[%clk 0:00:18]}
62... Nd7 {[%clk 0:00:04.5]} 63. g7 {[%clk 0:00:18.1]} 63... Nf6 {[%clk
0:00:05.4]} 64. Bxf6 {[%clk 0:00:18.1]} 64... Kxd6 {[%clk 0:00:06.3]} 65. g8=Q
{[%clk 0:00:18.6]} 65... Kd7 {[%clk 0:00:07]} 66. Qd8# {[%clk 0:00:18.9]} 1-0

[Event "*** Titled Tuesday Blitz"]
[Site "Chess.com"]
[Date "2020.05.19"]
[Round "2"]
[White "rakshi2005"]
[Black "Oneofmyturns"]
[Result "0-1"]
[WhiteElo "2281"]
[BlackElo "2611"]
[TimeControl "180+1"]
[EndTime "12:19:59 PDT"]
[Termination "Oneofmyturns won by resignation"]

1. e4 {[%clk 0:03:00.9]} 1... e5 {[%clk 0:02:56.8]} 2. Nf3 {[%clk 0:03:00.4]}
2... Nc6 {[%clk 0:02:56.8]} 3. Bc4 {[%clk 0:02:59.1]} 3... Bc5 {[%clk
0:02:55.7]} 4. O-O {[%clk 0:02:58.8]} 4... Nf6 {[%clk 0:02:54.9]} 5. d4 {[%clk
0:02:58.9]} 5... Bxd4 {[%clk 0:02:55]} 6. Nxd4 {[%clk 0:02:58.7]} 6... Nxd4
{[%clk 0:02:55.9]} 7. f4 {[%clk 0:02:58.6]} 7... d6 {[%clk 0:02:55.2]} 8. fxe5
{[%clk 0:02:58.9]} 8... dxe5 {[%clk 0:02:56.1]} 9. Bg5 {[%clk 0:02:59.1]} 9...
Be6 {[%clk 0:02:52.9]} 10. Na3 {[%clk 0:02:58.6]} 10... Qe7 {[%clk 0:02:44.5]}
11. c3 {[%clk 0:02:55]} 11... Bxc4 {[%clk 0:02:43.3]} 12. Bxf6 {[%clk 0:02:53]}
12... gxf6 {[%clk 0:02:42.5]} 13. Nxc4 {[%clk 0:02:52.7]} 13... Ne6 {[%clk
0:02:35.8]} 14. b4 {[%clk 0:02:52.3]} 14... Rg8 {[%clk 0:02:30.5]} 15. g3 {[%clk
0:02:49.3]} 15... Ng5 {[%clk 0:02:19.3]} 16. Qd5 {[%clk 0:02:31.7]} 16... c6
{[%clk 0:02:03.4]} 17. Qd6 {[%clk 0:02:12.2]} 17... Nxe4 {[%clk 0:01:21.4]} 18.
Qd3 {[%clk 0:01:47.9]} 18... Ng5 {[%clk 0:01:21.5]} 19. Nd6+ {[%clk 0:01:47]}
19... Kf8 {[%clk 0:01:21.2]} 20. Nf5 {[%clk 0:01:35.3]} 20... Rd8 {[%clk
0:01:16.4]} 21. Qe3 {[%clk 0:01:20.6]} 21... Qc7 {[%clk 0:01:06.3]} 22. h4
{[%clk 0:01:18.5]} 22... Ne6 {[%clk 0:00:57.7]} 23. Qh6+ {[%clk 0:01:16.2]}
23... Ke8 {[%clk 0:00:56.3]} 24. Qxf6 {[%clk 0:01:14]} 24... Rd3 {[%clk
0:00:47.5]} 25. Rad1 {[%clk 0:01:05.2]} 25... e4 {[%clk 0:00:47.6]} 26. Rxd3
{[%clk 0:01:02.1]} 26... exd3 {[%clk 0:00:48.5]} 27. Re1 {[%clk 0:00:57.9]}
27... Rxg3+ {[%clk 0:00:39.8]} 28. Nxg3 {[%clk 0:00:41.4]} 28... Qxg3+ {[%clk
0:00:40.7]} 29. Kf1 {[%clk 0:00:41.5]} 29... d2 {[%clk 0:00:41.1]} 30. Rxe6+
{[%clk 0:00:30.8]} 30... fxe6 {[%clk 0:00:42]} 31. Qxe6+ {[%clk 0:00:30.7]}
31... Kd8 {[%clk 0:00:35.6]} 32. Qf6+ {[%clk 0:00:30.3]} 32... Ke8 {[%clk
0:00:28]} 33. Qe6+ {[%clk 0:00:30]} 33... Kf8 {[%clk 0:00:20.3]} 34. Qf6+ {[%clk
0:00:28.9]} 34... Kg8 {[%clk 0:00:20.3]} 35. Qd8+ {[%clk 0:00:28.5]} 35... Kg7
{[%clk 0:00:20.4]} 36. Qd7+ {[%clk 0:00:25.2]} 36... Kg6 {[%clk 0:00:18.7]} 37.
Qxd2 {[%clk 0:00:24.5]} 37... Qxh4 {[%clk 0:00:17.8]} 38. Qd7 {[%clk 0:00:19.6]}
38... Qf6+ {[%clk 0:00:14.1]} 39. Kg2 {[%clk 0:00:18.8]} 39... Qxc3 {[%clk
0:00:13.9]} 40. Qxb7 {[%clk 0:00:18.7]} 40... Qd2+ {[%clk 0:00:07.8]} 41. Kg3
{[%clk 0:00:18.3]} 41... Qd3+ {[%clk 0:00:07.5]} 42. Kg2 {[%clk 0:00:18]} 42...
Qe2+ {[%clk 0:00:07.9]} 43. Kg3 {[%clk 0:00:18.1]} 43... Qe3+ {[%clk 0:00:08.3]}
44. Kg2 {[%clk 0:00:18.4]} 44... Qb6 {[%clk 0:00:07.9]} 45. Qe7 {[%clk
0:00:15.3]} 45... Qb5 {[%clk 0:00:05.8]} 46. Qe6+ {[%clk 0:00:14.8]} 46... Kg5
{[%clk 0:00:06]} 47. Qe7+ {[%clk 0:00:14.9]} 47... Kf5 {[%clk 0:00:06.3]} 48.
Qxh7+ {[%clk 0:00:14.7]} 48... Ke6 {[%clk 0:00:06.7]} 49. Qg6+ {[%clk
0:00:14.7]} 49... Kd5 {[%clk 0:00:07]} 50. Qf5+ {[%clk 0:00:12.3]} 50... Kc4
{[%clk 0:00:07.4]} 51. Qe4+ {[%clk 0:00:12.1]} 51... Kc3 {[%clk 0:00:07.7]} 52.
Qe1+ {[%clk 0:00:04.7]} 52... Kb2 {[%clk 0:00:08]} 53. Qd2+ {[%clk 0:00:03.9]}
53... Ka3 {[%clk 0:00:08.4]} 54. Qc3+ {[%clk 0:00:04]} 54... Kxa2 {[%clk
0:00:08.8]} 55. Qc2+ {[%clk 0:00:03.8]} 55... Ka3 {[%clk 0:00:09.4]} 56. Qc3+
{[%clk 0:00:04.1]} 56... Ka4 {[%clk 0:00:09.8]} 57. Qa1+ {[%clk 0:00:04]} 57...
Kxb4 {[%clk 0:00:10.7]} 58. Qxa7 {[%clk 0:00:03.7]} 58... Qd5+ {[%clk
0:00:10.6]} 59. Kg3 {[%clk 0:00:03.4]} 59... c5 {[%clk 0:00:08.9]} 60. Qb6+
{[%clk 0:00:03.1]} 60... Kc4 {[%clk 0:00:08.9]} 61. Qa6+ {[%clk 0:00:03.4]}
61... Kd4 {[%clk 0:00:09.3]} 62. Qa4+ {[%clk 0:00:03]} 62... Kd3 {[%clk
0:00:09.4]} 63. Qa3+ {[%clk 0:00:02.9]} 63... Ke4 {[%clk 0:00:09.7]} 64. Qa4+
{[%clk 0:00:02.8]} 64... Qd4 {[%clk 0:00:09.6]} 65. Qc2+ {[%clk 0:00:02.4]}
65... Qd3+ {[%clk 0:00:09.6]} 66. Qxd3+ {[%clk 0:00:02.7]} 66... Kxd3 {[%clk
0:00:10.1]} 67. Kf3 {[%clk 0:00:03.6]} 67... Kd2 {[%clk 0:00:10.6]} 68. Ke4
{[%clk 0:00:02.7]} 68... c4 {[%clk 0:00:11.5]} 69. Kd4 {[%clk 0:00:03.6]} 69...
c3 {[%clk 0:00:12.4]} 0-1